fUST/lending_fUST_20250225
["ID","MTS","AMOUNT","RATE_DAILY","PERIOD"]
[354413407,1740478245342,-1236.0,0.0006923,120]
[354413408,1740478245351,-1236.0,0.0006923,120]
[354413409,1740478245360,-1236.0,0.0006923,120]
[354413410,1740478245369,-1236.0,0.0006923,120]
[354413411,1740478245378,-1236.0,0.0006923,120]
[354413412,1740478245390,-1236.0,0.0006923,120]
[354413413,1740478245399,-1236.0,0.0006923,120]
[354413414,1740478245409,-1236.0,0.0006923,120]
[354413415,1740478245419,-1236.0,0.0006923,120]
[354413416,1740478245428,-1236.0,0.0006923,120]
[354413417,1740478245438,-1236.0,0.0006923,120]
[354413418,1740478245448,-1236.0,0.0006923,120]
[354413419,1740478245457,-1236.0,0.0006923,120]
[354413420,1740478245466,-1236.0,0.0006923,120]
[354413421,1740478245476,-1236.0,0.0006923,120]
[354413422,1740478245485,-1236.0,0.0006923,120]
[354413423,1740478245494,-3448.84271499,0.0006923,120]
[354413424,1740478245503,-2485.65,0.00069404,120]
[354413425,1740478245512,-1000.0,0.00069404,2]
[354413426,1740478245522,-500.0,0.00069404,120]
[354413427,1740478245532,-500.0,0.00069404,120]
[354413428,1740478245541,-500.0,0.00069404,120]
[354413429,1740478245550,-1052.62,0.00069404,120]
[354413430,1740478245559,-500.0,0.00069404,120]
[354413431,1740478245568,-2693.22,0.00069404,120]
[354413432,1740478245577,-1382.18,0.00069404,120]
[354413433,1740478245588,-500.0,0.00069404,120]
[354413434,1740478245597,-1442.6,0.00069543,120]
[354413435,1740478245606,-500.0,0.00069543,120]
[354413436,1740478245615,-500.0,0.00069543,120]
[354413437,1740478245625,-500.0,0.00069543,120]
[354413438,1740478245636,-500.0,0.00069543,120]
[354413439,1740478245645,-528.88756702,0.00069543,120]
[354413440,1740478245655,-1256.48536837,0.00069578,6]
[354413441,1740478245664,-500.0,0.00069587,120]
[354413442,1740478245673,-2051.42,0.00069587,120]
[354413443,1740478245683,-500.0,0.00069587,120]
[354413444,1740478245692,-1022.93,0.00069587,120]
[354413445,1740478245702,-500.0,0.00069587,120]
[354413446,1740478245711,-500.0,0.00069588,120]
[354413447,1740478245721,-500.0,0.00069588,120]
[354413448,1740478245730,-500.0,0.00069588,3]
[354413449,1740478245739,-500.0,0.00069588,120]
[354413451,1740478245749,-581.16,0.00069588,120]
[354413452,1740478245759,-500.0,0.00069588,120]
[354413453,1740478245768,-990.34,0.00069588,120]
[354413454,1740478245778,-11308.37,0.00069588,7]
[354413455,1740478245787,-617.03,0.00069588,120]
[354413456,1740478245797,-500.0,0.00069588,120]
[354413457,1740478245807,-651.88,0.00069588,120]
[354413458,1740478245816,-1903.38,0.00069588,120]
[354413459,1740478245826,-6689.83526166,0.00069589,120]
[354413460,1740478245842,-132.78473834,0.00069589,120]
[354413461,1740478245851,-500.0,0.000699,30]
[354413463,1740478245860,-500.0,0.000699,30]
[354413464,1740478245869,-500.0,0.000699,30]
[354413466,1740478245882,-500.0,0.000699,30]
[354413468,1740478245891,-500.0,0.000699,30]
[354413470,1740478245900,-500.0,0.000699,30]
[354413472,1740478245909,-213.64092166,0.000699,30]
[354413473,1740478245921,-286.35907834,0.000699,30]
[354413475,1740478245931,-500.0,0.000699,30]
[354413477,1740478245940,-500.0,0.000699,30]
[354413478,1740478245950,-2485.65,0.00069952,120]
[354413479,1740478245960,-1000.0,0.00069952,2]
[354413480,1740478245970,-509.95158575,0.00069952,120]
[354413481,1740478245979,-646.84,0.00069952,120]
[354413482,1740478245989,-500.0,0.00069952,120]
[354413483,1740478246000,-1052.62,0.00069952,120]
[354413484,1740478246011,-500.0,0.00069952,120]
[354413485,1740478246020,-818.57933591,0.00069952,120]
[354413496,1740478248748,-317.34,0.00067899,120]
[354413497,1740478248758,-562.66,0.00069952,120]
[354413498,1740478248771,-1311.98066409,0.00069952,120]
[354413499,1740478248781,-1382.18,0.00069952,120]
[354413500,1740478248791,-500.0,0.00069952,120]
[354413501,1740478248800,-330.90591555,0.0007,30]
[354413502,1740478248810,-253.87745897,0.0007,120]
[354413503,1740478248819,-10000.0,0.0007,120]
[354413504,1740478248828,-1256.48536837,0.00070081,6]
[354413505,1740478248838,-1442.6,0.00070091,120]
[354413506,1740478248847,-500.0,0.00070091,120]
[354413507,1740478248857,-500.0,0.00070091,120]
[354413508,1740478248866,-500.0,0.00070091,120]
[354413509,1740478248876,-500.0,0.00070091,120]
[354413510,1740478248887,-514.45975392,0.00070099,120]
[354413511,1740478248896,-206.68695037,0.00070099,31]
[354413512,1740478248906,-514.45975392,0.00070099,120]
[354413513,1740478248915,-514.45975392,0.00070099,120]
[354413514,1740478248924,-514.45975392,0.00070099,120]
[354413515,1740478248934,-514.45975392,0.00070099,120]
[354413516,1740478248943,-514.45975392,0.00070099,120]
[354413517,1740478248952,-514.45975392,0.00070099,120]
[354413518,1740478248962,-514.45975392,0.00070099,120]
[354413519,1740478248971,-514.45975392,0.00070099,120]
[354413520,1740478248983,-514.45975392,0.00070099,120]
[354413521,1740478248992,-514.45975392,0.00070099,120]
[354413522,1740478249001,-514.45975392,0.00070099,120]
[354413523,1740478249010,-514.45975392,0.00070099,120]
[354413524,1740478249020,-514.45975392,0.00070099,120]
[354413525,1740478249029,-514.45975392,0.00070099,120]
[354413526,1740478249038,-514.45975392,0.00070099,120]
[354413527,1740478249048,-514.45975392,0.00070099,120]
[354413528,1740478249058,-23820.79,0.000701,30]
[354413529,1740478249067,-500.0,0.00070135,120]
[354413530,1740478249077,-2051.42,0.00070135,120]
[354413531,1740478249086,-500.0,0.00070135,120]
[354413532,1740478249095,-1022.93,0.00070135,120]
[354413533,1740478249104,-500.0,0.00070135,120]
[354413534,1740478249114,-6822.62,0.00070136,120]
[354413535,1740478249124,-500.0,0.00070136,120]
[354413536,1740478249135,-500.0,0.00070136,120]
[354413537,1740478249145,-500.0,0.00070136,3]
[354413538,1740478249155,-185.5,0.00070136,120]
[354413539,1740478249165,-581.16,0.00070136,120]
[354413540,1740478249174,-500.0,0.00070136,120]
[354413541,1740478249184,-990.34,0.00070136,120]
[354413542,1740478249194,-11308.37,0.00070136,7]
[354413543,1740478249204,-617.03,0.00070136,120]
[354413544,1740478249214,-502.7,0.00070136,120]
[354413545,1740478249227,-651.88,0.00070136,120]
[354413546,1740478249236,-1903.38,0.00070136,120]
[354413547,1740478249246,-500.0,0.00070497,15]
[354413548,1740478249255,-2485.65,0.000705,120]
[354413549,1740478249265,-1000.0,0.000705,2]
[354413550,1740478249275,-500.0,0.000705,120]
[354413551,1740478249285,-1052.62,0.000705,120]
[354413552,1740478249294,-500.0,0.000705,120]
[354413553,1740478249304,-2693.22,0.000705,120]
[354413554,1740478249313,-1382.18,0.000705,120]
[354413555,1740478249323,-500.0,0.000705,120]
[354413556,1740478249332,-1256.48536837,0.00070629,6]
[354413557,1740478249342,-1442.6,0.00070639,120]
[354413558,1740478249352,-500.0,0.00070639,120]
[354413559,1740478249363,-500.0,0.00070639,120]
[354413560,1740478249374,-500.0,0.00070639,120]
[354413561,1740478249385,-281.171671,0.00070639,120]
[354413562,1740478249394,-500.0,0.00070683,120]
[354413563,1740478249403,-2051.42,0.00070683,120]
[354413564,1740478249414,-500.0,0.00070683,120]
[354413565,1740478249424,-1022.93,0.00070683,120]
[354413566,1740478249433,-500.0,0.00070683,120]
[354413567,1740478249442,-6822.62,0.00070684,120]
[354413568,1740478249452,-500.0,0.00070684,120]
[354413569,1740478249461,-500.0,0.00070684,120]
[354413570,1740478249472,-500.0,0.00070684,3]
[354413571,1740478249482,-581.16,0.00070684,120]
[354413572,1740478249491,-500.0,0.00070684,120]
[354413573,1740478249500,-990.34,0.00070684,120]
[354413574,1740478249510,-11308.37,0.00070684,7]
[354413575,1740478249519,-617.03,0.00070684,120]
[354413576,1740478249529,-651.88,0.00070684,120]
[354413577,1740478249539,-1903.38,0.00070684,120]
[354413578,1740478249549,-2485.65,0.00071048,120]
[354413579,1740478249558,-1000.0,0.00071048,2]
[354413580,1740478249568,-500.0,0.00071048,120]
[354413581,1740478249577,-1052.62,0.00071048,120]
[354413582,1740478249587,-237.45462893,0.00071048,120]
[354413583,1740478249596,-2693.22,0.00071048,120]
[354413584,1740478249606,-1382.18,0.00071048,120]
[354413585,1740478249615,-500.0,0.00071048,120]
[354413586,1740478249625,-1256.48536837,0.00071177,6]
[354413587,1740478249638,-1442.6,0.00071187,120]
[354413588,1740478249648,-500.0,0.00071187,120]
[354413589,1740478249657,-500.0,0.00071187,120]
[354413590,1740478249666,-500.0,0.00071187,120]
[354413591,1740478249676,-500.0,0.00071231,120]
[354413592,1740478249685,-2051.42,0.00071231,120]
[354413593,1740478249695,-500.0,0.00071231,120]
[354413594,1740478249705,-1022.93,0.00071231,120]
[354413595,1740478249715,-500.0,0.00071231,120]
[354413596,1740478249724,-6822.62,0.00071232,120]
[354413597,1740478249733,-202.45647257,0.00071232,120]
[354413598,1740478249742,-273.04,0.00071232,120]
[354413599,1740478249752,-500.0,0.00071232,3]
[354413600,1740478249761,-581.16,0.00071232,120]
[354413601,1740478249771,-500.0,0.00071232,120]
[354413602,1740478249780,-990.34,0.00071232,120]
[354413603,1740478249789,-11308.37,0.00071232,7]
[354413604,1740478249798,-617.03,0.00071232,120]
[354413605,1740478249808,-651.88,0.00071232,120]
[354413606,1740478249818,-1903.38,0.00071232,120]
[354413607,1740478249827,-2485.65,0.00071596,120]
[354413608,1740478249837,-1000.0,0.00071596,2]
[354413609,1740478249847,-500.0,0.00071596,120]
[354413610,1740478249856,-1052.62,0.00071596,120]
[354413611,1740478249866,-2693.22,0.00071596,120]
[354413612,1740478249876,-1382.18,0.00071596,120]
[354413613,1740478249890,-314.55222453,0.00071596,120]
[354413614,1740478249899,-1442.6,0.00071735,120]
[354413615,1740478249909,-500.0,0.00071735,120]
[354413616,1740478249923,-500.0,0.00071735,120]
[354413617,1740478249933,-500.0,0.00071735,120]
[354413618,1740478249942,-1256.48536837,0.0007177,6]
[354413619,1740478249952,-500.0,0.00071779,120]
[354413620,1740478249962,-2051.42,0.00071779,120]
[354413621,1740478249972,-500.0,0.00071779,120]
[354413622,1740478249981,-1022.93,0.00071779,120]
[354413623,1740478249991,-500.0,0.00071779,120]
[354413624,1740478250002,-6822.62,0.0007178,120]
[354413625,1740478250011,-500.0,0.0007178,3]
[354413626,1740478250021,-581.16,0.0007178,120]
[354413627,1740478250031,-500.0,0.0007178,120]
[354413628,1740478250040,-990.34,0.0007178,120]
[354413629,1740478250049,-11308.37,0.0007178,7]
[354413630,1740478250058,-617.03,0.0007178,120]
[354413631,1740478250068,-651.88,0.0007178,120]
[354413632,1740478250077,-1903.38,0.0007178,120]
[354413633,1740478250086,-2485.65,0.00072144,120]
[354413634,1740478250096,-1000.0,0.00072144,2]
[354413635,1740478250106,-500.0,0.00072144,120]
[354413636,1740478250115,-1052.62,0.00072144,120]
[354413637,1740478250125,-2693.22,0.00072144,120]
[354413638,1740478250137,-1382.18,0.00072144,120]
[354413639,1740478250147,-531.25,0.000722,60]
[354413640,1740478250156,-1442.6,0.00072283,120]
[354413641,1740478250165,-500.0,0.00072283,120]
[354413642,1740478250175,-500.0,0.00072283,120]
[354413643,1740478250184,-500.0,0.00072283,120]
[354413644,1740478250194,-635.26,0.000723,30]
[354413645,1740478250203,-1256.48536837,0.00072318,6]
[354413646,1740478250216,-500.0,0.00072327,120]
[354413647,1740478250225,-2051.42,0.00072327,120]
[354413648,1740478250235,-500.0,0.00072327,120]
[354413649,1740478250244,-1022.93,0.00072327,120]
[354413650,1740478250254,-500.0,0.00072327,120]
[354413651,1740478250264,-6822.62,0.00072328,120]
[354413652,1740478250273,-500.0,0.00072328,3]
[354413653,1740478250283,-581.16,0.00072328,120]
[354413654,1740478250293,-500.0,0.00072328,120]
[354413655,1740478250303,-990.34,0.00072328,120]
[354413656,1740478250403,-11308.37,0.00072328,7]
[354413657,1740478250412,-617.03,0.00072328,120]
[354413658,1740478250422,-651.88,0.00072328,120]
[354413659,1740478250432,-1903.38,0.00072328,120]
[354413660,1740478250441,-2485.65,0.00072692,120]
[354413661,1740478250451,-1000.0,0.00072692,2]
[354413662,1740478250460,-500.0,0.00072692,120]
[354413663,1740478250468,-1052.62,0.00072692,120]
[354413664,1740478250478,-2693.22,0.00072692,120]
[354413665,1740478250487,-1382.18,0.00072692,120]
[354413666,1740478250496,-1442.6,0.00072831,120]
[354413667,1740478250505,-204.32559339,0.00072831,120]
[354413668,1740478250514,-500.0,0.00072831,120]
[354413669,1740478250523,-500.0,0.00072831,120]
[354413670,1740478250533,-500.0,0.00072875,120]
[354413671,1740478250542,-2051.42,0.00072875,120]
[354413672,1740478250552,-500.0,0.00072875,120]
[354413673,1740478250562,-1022.93,0.00072875,120]
[354413674,1740478250571,-500.0,0.00072875,120]
[354413675,1740478250581,-6822.62,0.00072876,120]
[354413676,1740478250591,-500.0,0.00072876,3]
[354413677,1740478250600,-581.16,0.00072876,120]
[354413678,1740478250609,-302.25,0.00072876,120]
[354413679,1740478250618,-990.34,0.00072876,120]
[354413680,1740478250627,-11308.37,0.00072876,7]
[354413681,1740478250641,-617.03,0.00072876,120]
[354413682,1740478250650,-651.88,0.00072876,120]
[354413683,1740478250660,-1903.38,0.00072876,120]
[354413684,1740478250669,-2485.65,0.0007324,120]
[354413685,1740478250678,-1000.0,0.0007324,2]
[354413686,1740478250688,-500.0,0.0007324,120]
[354413687,1740478250697,-1052.62,0.0007324,120]
[354413688,1740478250706,-2693.22,0.0007324,120]
[354413689,1740478250716,-1382.18,0.0007324,120]
[354413690,1740478250725,-1256.48536837,0.00073369,6]
[354413691,1740478250735,-1442.6,0.00073379,120]
[354413692,1740478250744,-500.0,0.00073379,120]
[354413693,1740478250753,-500.0,0.00073379,120]
[354413694,1740478250763,-984.56,0.000734,30]
[354413695,1740478250772,-536.25,0.00073423,120]
[354413696,1740478250781,-2051.42,0.00073423,120]
[354413697,1740478250791,-500.0,0.00073423,120]
[354413698,1740478250800,-1022.93,0.00073423,120]
[354413699,1740478250809,-500.0,0.00073423,120]
[354413700,1740478250819,-6822.62,0.00073424,120]
[354413701,1740478250828,-500.0,0.00073424,3]
[354413702,1740478250837,-581.16,0.00073424,120]
[354413703,1740478250846,-990.34,0.00073424,120]
[354413704,1740478250855,-11308.37,0.00073424,7]
[354413705,1740478250865,-617.03,0.00073424,120]
[354413706,1740478250875,-651.88,0.00073424,120]
[354413707,1740478250888,-1903.38,0.00073424,120]
[354413708,1740478250897,-2485.65,0.00073787,120]
[354413709,1740478250907,-1000.0,0.00073787,2]
[354413710,1740478250916,-500.0,0.00073787,120]
[354413711,1740478250925,-1052.62,0.00073787,120]
[354413712,1740478250935,-2693.22,0.00073787,120]
[354413713,1740478250944,-1382.18,0.00073787,120]
[354413714,1740478250954,-1442.6,0.00073927,120]
[354413715,1740478250963,-500.0,0.00073927,120]
[354413716,1740478250972,-500.0,0.00073927,120]
[354413717,1740478250982,-1256.48536837,0.00073962,6]
[354413718,1740478250991,-2051.42,0.0007397,120]
[354413719,1740478251001,-500.0,0.0007397,120]
[354413720,1740478251010,-1022.93,0.0007397,120]
[354413721,1740478251020,-499.109966,0.0007397,120]
[354413722,1740478251029,-6822.62,0.00073972,120]
[354413723,1740478251039,-500.0,0.00073972,3]
[354413724,1740478251048,-581.16,0.00073972,120]
[354413725,1740478251057,-990.34,0.00073972,120]
[354413726,1740478251066,-11308.37,0.00073972,7]
[354413727,1740478251075,-617.03,0.00073972,120]
[354413728,1740478251084,-651.88,0.00073972,120]
[354413729,1740478251094,-1903.38,0.00073972,120]
[354413730,1740478251103,-643.11,0.00074,30]
[354413731,1740478251112,-2485.65,0.00074335,120]
[354413732,1740478251121,-1000.0,0.00074335,2]
[354413733,1740478251130,-500.0,0.00074335,120]
[354413734,1740478251141,-1052.62,0.00074335,120]
[354413735,1740478251151,-2693.22,0.00074335,120]
[354413736,1740478251160,-1382.18,0.00074335,120]
[354413737,1740478251169,-23820.79,0.000744,30]
[354413738,1740478251179,-1256.48536837,0.00074465,6]
[354413739,1740478251187,-1442.6,0.00074475,120]
[354413740,1740478251196,-593.1537,0.00074475,120]
[354413741,1740478251205,-500.0,0.00074475,120]
[354413742,1740478251215,-2051.42,0.00074518,120]
[354413743,1740478251228,-500.0,0.00074518,120]
[354413744,1740478251237,-1022.93,0.00074518,120]
[354413745,1740478251246,-6822.62,0.0007452,120]
[354413746,1740478251255,-505.28,0.0007452,3]
[354413747,1740478251264,-581.16,0.0007452,120]
[354413748,1740478251274,-990.34,0.0007452,120]
[354413749,1740478251283,-9499.23392972,0.0007452,7]
[354413750,1740478251327,-322.10003985,0.0007452,7]
[354413751,1740478251339,-1487.03603043,0.0007452,7]
[354413752,1740478251347,-617.03,0.0007452,120]
[354413753,1740478251356,-651.88,0.0007452,120]
[354413754,1740478251366,-1903.38,0.0007452,120]
[354413755,1740478251376,-2485.65,0.00074883,120]
[354413756,1740478251386,-511.800202,0.00074883,2]
[354413757,1740478251395,-500.0,0.00074883,120]
[354413758,1740478251405,-1052.62,0.00074883,120]
[354413759,1740478251414,-2693.22,0.00074883,120]
[354413760,1740478251423,-1382.18,0.00074883,120]
[354413761,1740478251433,-1442.6,0.00075023,120]
[354413762,1740478251442,-500.0,0.00075023,120]
[354413763,1740478251451,-2051.42,0.00075066,120]
[354413764,1740478251460,-500.0,0.00075066,120]
[354413765,1740478251470,-1022.93,0.00075066,120]
[354413766,1740478251480,-581.16,0.00075067,120]
[354413767,1740478251489,-990.34,0.00075067,120]
[354413768,1740478251499,-11308.37,0.00075067,7]
[354413769,1740478251508,-617.03,0.00075067,120]
[354413770,1740478251518,-651.88,0.00075067,120]
[354413771,1740478251528,-1903.38,0.00075067,120]
[354413772,1740478251537,-6822.62,0.00075068,120]
[354413773,1740478251547,-1256.48536837,0.00075421,6]
[354413774,1740478251557,-2485.65,0.00075431,120]
[354413775,1740478251567,-500.0,0.00075431,120]
[354413776,1740478251577,-1052.62,0.00075431,120]
[354413777,1740478251586,-2693.22,0.00075431,120]
[354413778,1740478251596,-1382.18,0.00075431,120]
[354413779,1740478251605,-1442.6,0.0007557,120]
[354413780,1740478251614,-500.0,0.0007557,120]
[354413781,1740478251623,-2051.42,0.00075614,120]
[354413782,1740478251635,-500.0,0.00075614,120]
[354413783,1740478251645,-1022.93,0.00075614,120]
[354413784,1740478251655,-581.16,0.00075615,120]
[354413785,1740478251665,-990.34,0.00075615,120]
[354413786,1740478251674,-11308.37,0.00075615,7]
[354413787,1740478251684,-617.03,0.00075615,120]
[354413788,1740478251694,-651.88,0.00075615,120]
[354413789,1740478251703,-1903.38,0.00075615,120]
[354413790,1740478251713,-6822.62,0.00075616,120]
[354413791,1740478251722,-500.0,0.00075972,120]
[354413792,1740478251731,-500.0,0.00075972,120]
[354413793,1740478251740,-2485.65,0.00075979,120]
[354413794,1740478251750,-500.0,0.00075979,120]
[354413795,1740478251759,-1052.62,0.00075979,120]
[354413796,1740478251769,-2693.22,0.00075979,120]
[354413797,1740478251778,-1382.18,0.00075979,120]
[354413798,1740478251788,-1256.48536837,0.00076108,6]
[354413799,1740478251797,-1442.6,0.00076118,120]
[354413800,1740478251806,-500.0,0.00076118,120]
[354413801,1740478251815,-2051.42,0.00076162,120]
[354413802,1740478251825,-500.0,0.00076162,120]
[354413803,1740478251834,-1022.93,0.00076162,120]
[354413804,1740478251843,-581.16,0.00076163,120]
[354413805,1740478251853,-990.34,0.00076163,120]
[354413806,1740478251863,-11308.37,0.00076163,7]
[354413807,1740478251873,-617.03,0.00076163,120]
[354413808,1740478251884,-651.88,0.00076163,120]
[354413809,1740478251894,-1903.38,0.00076163,120]
[354413810,1740478251904,-6822.62,0.00076164,120]
[354413811,1740478251914,-635.26,0.000762,30]
[354413812,1740478251924,-2485.65,0.00076527,120]
[354413813,1740478251933,-500.0,0.00076527,120]
[354413814,1740478251942,-1052.62,0.00076527,120]
[354413815,1740478251951,-2693.22,0.00076527,120]
[354413816,1740478251961,-1382.18,0.00076527,120]
[354413817,1740478251970,-1442.6,0.00076666,120]
[354413818,1740478251979,-500.0,0.00076666,120]
[354413819,1740478251989,-531.25,0.000767,60]
[354413820,1740478251998,-2051.42,0.0007671,120]
[354413821,1740478252008,-500.0,0.0007671,120]
[354413822,1740478252017,-1022.93,0.0007671,120]
[354413823,1740478252026,-581.16,0.00076711,120]
[354413824,1740478252035,-990.34,0.00076711,120]
[354413825,1740478252044,-11308.37,0.00076711,7]
[354413826,1740478252053,-617.03,0.00076711,120]
[354413827,1740478252062,-651.88,0.00076711,120]
[354413828,1740478252072,-1903.38,0.00076711,120]
[354413829,1740478252081,-6822.62,0.00076712,120]
[354413830,1740478252091,-2485.65,0.00077075,120]
[354413831,1740478252100,-500.0,0.00077075,120]
[354413832,1740478252109,-1052.62,0.00077075,120]
[354413833,1740478252119,-2693.22,0.00077075,120]
[354413834,1740478252128,-1382.18,0.00077075,120]
[354413835,1740478252139,-984.56,0.000771,30]
[354413836,1740478252149,-1256.48536837,0.00077204,7]
[354413837,1740478252158,-1442.6,0.00077214,120]
[354413838,1740478252167,-291.44,0.00077214,120]
[354413839,1740478252176,-2051.42,0.00077258,120]
[354413840,1740478252186,-500.0,0.00077258,120]
[354413841,1740478252195,-1022.93,0.00077258,120]
[354413842,1740478252205,-581.16,0.00077259,120]
[354413843,1740478252215,-990.34,0.00077259,120]
[354413844,1740478252230,-3551.18766251,0.00077259,7]
[354413845,1740478252412,-382.79,0.00066299,120]
[354413846,1740478252421,-500.0,0.00067899,120]
[354413847,1740478252432,-7757.18233749,0.00077259,7]
[354413848,1740478252441,-617.03,0.00077259,120]
[354413849,1740478252450,-651.88,0.00077259,120]
[354413850,1740478252460,-1903.38,0.00077259,120]
[354413851,1740478252469,-6822.62,0.0007726,120]
[354413852,1740478252478,-2485.65,0.00077623,120]
[354413853,1740478252487,-582.88,0.00077623,120]
[354413854,1740478252496,-1052.62,0.00077623,120]
[354413855,1740478252505,-2693.22,0.00077623,120]
[354413856,1740478252514,-1382.18,0.00077623,120]
[354413857,1740478252524,-1442.6,0.00077762,120]
[354413858,1740478252533,-1256.48536837,0.00077798,7]
[354413859,1740478252543,-643.11,0.000778,30]
[354413860,1740478252553,-2051.42,0.00077806,120]
[354413861,1740478252563,-310.14,0.00077806,120]
[354413862,1740478252572,-1022.93,0.00077806,120]
[354413863,1740478252582,-581.16,0.00077807,120]
[354413864,1740478252592,-990.34,0.00077807,120]
[354413865,1740478252601,-11308.37,0.00077807,7]
[354413866,1740478252610,-617.03,0.00077807,120]
[354413867,1740478252619,-651.88,0.00077807,120]
[354413868,1740478252629,-1903.38,0.00077807,120]
[354413869,1740478252640,-6822.62,0.00077808,120]
[354413870,1740478252650,-2485.65,0.00078171,120]
[354413871,1740478252659,-1052.62,0.00078171,120]
[354413872,1740478252668,-2693.22,0.00078171,120]
[354413873,1740478252677,-1382.18,0.00078171,120]
[354413874,1740478252687,-1442.6,0.0007831,120]
[354413875,1740478252696,-2051.42,0.00078354,120]
[354413876,1740478252705,-1022.93,0.00078354,120]
[354413877,1740478252804,-581.16,0.00078355,120]
[354413878,1740478252816,-990.34,0.00078355,120]
[354413879,1740478252826,-11308.37,0.00078355,7]
[354413880,1740478252836,-617.03,0.00078355,120]
[354413881,1740478252846,-651.88,0.00078355,120]
[354413882,1740478252855,-1903.38,0.00078355,120]
[354413883,1740478252865,-6822.79250116,0.00078356,120]
[354413884,1740478252874,-2485.65,0.00078719,120]
[354413885,1740478252886,-1052.62,0.00078719,120]
[354413886,1740478252896,-2693.22,0.00078719,120]
[354413887,1740478252906,-1382.18,0.00078719,120]
[354413888,1740478252917,-1256.48536837,0.0007879,7]
[354413889,1740478252927,-23820.79,0.000788,30]
[354413890,1740478252937,-1442.6,0.00078858,120]
[354413891,1740478252947,-2051.49579084,0.00078902,120]
[354413892,1740478252956,-1023.120709,0.00078902,120]
[354413893,1740478252965,-581.25719896,0.00078903,120]
[354413894,1740478252975,-990.46,0.00078903,120]
[354413895,1740478252985,-11308.38824618,0.00078903,7]
[354413896,1740478252994,-617.21,0.00078903,120]
[354413897,1740478253003,-651.92,0.00078903,120]
[354413898,1740478253013,-1903.43000213,0.00078903,120]
[354413899,1740478253023,-1256.48536837,0.0007922,7]
[354413900,1740478253032,-1236.0,0.0007923,120]
[354413901,1740478253041,-1236.0,0.0007923,120]
[354413902,1740478253050,-1236.0,0.0007923,120]
[354413903,1740478253060,-1236.0,0.0007923,120]
[354413904,1740478253069,-1236.0,0.0007923,120]
[354413905,1740478253079,-1236.0,0.0007923,120]
[354413906,1740478253088,-1236.0,0.0007923,120]
[354413907,1740478253098,-1236.0,0.0007923,120]
[354413908,1740478253108,-1236.0,0.0007923,120]
[354413909,1740478253117,-1236.0,0.0007923,120]
[354413910,1740478253127,-1236.0,0.0007923,120]
[354413911,1740478253138,-1236.0,0.0007923,120]
[354413912,1740478253147,-1236.0,0.0007923,120]
[354413913,1740478253157,-1236.0,0.0007923,120]
[354413914,1740478253166,-1236.0,0.0007923,120]
[354413915,1740478253175,-2485.6567526,0.00079267,120]
[354413916,1740478253185,-1052.8520346,0.00079267,120]
[354413917,1740478253194,-2693.28279737,0.00079267,120]
[354413918,1740478253203,-1382.2894984,0.00079267,120]
[354413919,1740478253216,-212.88508559,0.00079306,120]
[354413920,1740478253226,-212.88508559,0.00079306,120]
[354413921,1740478253235,-212.88508559,0.00079306,120]
[354413922,1740478253244,-212.88508559,0.00079306,120]
[354413923,1740478253254,-212.88508559,0.00079306,120]
[354413924,1740478253264,-212.88508559,0.00079306,120]